bitfinex-derivatives/quotes_ETHF0:USTF0_20250417
["timestamp","ask_amount","ask_price","bid_price","bid_amount"]
[1744851650431,4.8863,1586.6,1586.5,3.83803239]
[1744851651231,1.6785,1586.6,1586.5,3.83803239]
[1744851651726,2.93915,1586.6,1586.5,2.57735239]
[1744851652029,1.6785,1586.6,1586.5,3.83808239]
[1744851652634,4.8863,1586.6,1586.5,3.83808239]
[1744851652936,6.14695,1586.6,1586.5,3.83808239]
[1744851653238,2.93915,1586.6,1586.5,3.83808239]
[1744851653436,1.6785,1586.6,1586.5,3.83808239]
[1744851655236,1.6785,1586.6,1586.5,1.27018239]
[1744851655435,24.9432,1586.6,1585.6,8.42860107]
[1744851655641,1.26137,1585.7,1585.6,12.57087375]
[1744851655838,5.57337,1585.7,1585.6,12.57087375]
[1744851656033,7.30467,1585.7,1585.6,12.57087375]
[1744851656439,12.30467,1585.7,1585.6,5.48435631]
[1744851656643,12.30467,1585.7,1585.6,2.49226631]
[1744851656839,12.76586366,1585.7,1585.6,6.31e-06]
[1744851657446,1.26153,1585.5,1585.4,20.94341246]
[1744851657635,4.46933,1585.5,1585.4,19.63382246]
[1744851657943,9.46933,1585.5,1585.4,18.33698246]
[1744851658238,9.46933,1585.5,1585.4,15.45593246]
[1744851658444,9.46933,1585.5,1585.4,13.98155246]
[1744851658739,9.46933,1585.5,1585.4,12.64238246]
[1744851658943,1.26161,1585.4,1585.3,0.00945239]
[1744851659134,8.95871,1585.4,1585.3,0.00945239]
[1744851659434,13.95871,1585.4,1585.3,0.00945239]
[1744851659838,13.96071,1585.4,1585.3,0.00945239]
[1744851660036,8.96071,1585.4,1585.3,0.00945239]
[1744851661036,13.96071,1585.4,1585.3,2.39e-06]
[1744851661235,19.95071,1585.4,1585.3,2.39e-06]
[1744851661931,14.95071,1585.4,1585.3,2.39e-06]
[1744851663239,14.09181,1585.4,1585.3,2.39e-06]
[1744851663439,13.26131,1585.4,1585.3,2.39e-06]
[1744851663947,8.94731,1585.4,1585.3,2.39e-06]
[1744851665346,2.95731,1585.4,1585.3,2.39e-06]
[1744851666847,3.2078,1585.5,1585.3,5.00000239]
[1744851667041,3.2078,1585.5,1585.4,2.97539]
[1744851667240,3.2078,1585.5,1585.4,1.7138]
[1744851667557,3.2078,1585.5,1585.4,2.97541]
[1744851668643,3.2078,1585.5,1585.4,7.97541]
[1744851668847,8.79156239,1585.8,1585.4,12.5698]
[1744851669143,8.79160239,1585.8,1585.6,1.26145]
[1744851669348,8.79160239,1585.8,1585.7,1.7136]
[1744851669844,7.53025239,1585.8,1585.7,2.97497]
[1744851670043,8.79154239,1585.8,1585.7,1.7136]
[1744851670347,7.53025239,1585.8,1585.7,2.97497]
[1744851670744,7.53025239,1585.8,1585.7,1.7136]
[1744851670948,7.53025239,1585.8,1585.7,2.97497]
[1744851671448,7.53025239,1585.8,1585.3,0.82850239]
[1744851671643,4.46941,1585.4,1585.3,2.39e-06]
[1744851672257,6.10821,1585.4,1585.3,2.39e-06]
[1744851672452,17.09821,1585.4,1585.3,2.39e-06]
[1744851672752,18.8601912,1585.4,1585.3,2.39e-06]
[1744851672952,18.86019287,1585.4,1585.3,2.39e-06]
[1744851673754,18.74421,1585.4,1585.3,2.39e-06]
[1744851673953,18.86018529,1585.4,1585.3,2.39e-06]
[1744851674555,13.860185,1585.4,1585.3,2.39e-06]
[1744851674751,13.86018697,1585.4,1585.3,2.39e-06]
[1744851674951,13.8601871,1585.4,1585.3,2.39e-06]
[1744851675357,18.8601871,1585.4,1585.3,2.39e-06]
[1744851675856,13.74421,1585.4,1585.3,2.39e-06]
[1744851676355,16.41121,1585.4,1585.3,2.39e-06]
[1744851677060,10.42121,1585.4,1585.3,2.39e-06]
[1744851679256,21.52718946,1585.4,1585.3,2.39e-06]
[1744851679455,21.5271978,1585.4,1585.3,2.39e-06]
[1744851682658,21.41121,1585.4,1585.3,2.39e-06]
[1744851682856,21.52719589,1585.4,1585.3,2.39e-06]
[1744851683554,16.52719589,1585.4,1585.3,2.39e-06]
[1744851683956,16.52819589,1585.4,1585.3,2.39e-06]
[1744851689363,16.52819204,1585.4,1585.3,2.39e-06]
[1744851689661,21.52819204,1585.4,1585.3,2.39e-06]
[1744851690068,21.52820108,1585.4,1585.3,2.39e-06]
[1744851690859,1.26208,1584.8,1584.7,1.7659]
[1744851691166,8.78388,1584.8,1584.7,1.7659]
[1744851691954,7.5218,1584.8,1584.6,0.00945239]
[1744851692163,2.90976,1584.7,1584.6,0.00945239]
[1744851692363,3.3846257,1584.7,1584.6,0.00945239]
[1744851693164,2.90976,1584.7,1584.6,0.00945239]
[1744851693364,1.26216,1584.7,1584.6,0.00945239]
[1744851693862,7.28676,1584.7,1584.6,0.00945239]
[1744851694775,2.97176,1584.7,1584.6,0.00945239]
[1744851694960,7.28676,1584.7,1584.6,0.00945239]
[1744851695567,5.57716,1584.7,1584.6,0.00945239]
[1744851696069,7.31976,1584.7,1584.6,0.00945239]
[1744851696868,13.42579218,1584.7,1584.6,0.00945239]
[1744851697270,13.30976,1584.7,1584.6,2.39e-06]
[1744851698971,13.42579268,1584.7,1584.6,2.39e-06]
[1744851699468,18.42579268,1584.7,1584.6,2.39e-06]
[1744851699669,1.26264,1584.1,1584.0,0.8714]
[1744851699870,1.26264,1584.1,1584.0,2.5086]
[1744851699871,8.78444,1584.1,1584.0,2.5086]
[1744851700573,8.78444,1584.1,1584.0,1.6372]
[1744851705964,7.5218,1584.1,1584.0,7.89992]
[1744851706167,4.314,1584.1,1584.0,7.89992]
[1744851706367,3.2078,1584.2,1584.1,1.26264]
[1744851706567,3.2078,1584.2,1584.1,2.4272]
[1744851706769,3.2078,1584.2,1584.1,7.4272]
[1744851707066,3.2078,1584.2,1584.1,2.4272]
[1744851707274,3.2078,1584.2,1584.1,3.68984]
[1744851707476,3.2078,1584.2,1584.1,8.68984]
[1744851709574,3.2078,1584.4,1584.1,8.68984]
[1744851709877,3.2078,1584.4,1584.3,1.26248]
[1744851710070,4.32545239,1584.9,1584.7,1.2621]
[1744851710264,5.58747239,1584.9,1584.8,1.621]
[1744851710474,4.32545239,1584.9,1584.8,4.50258]
[1744851711479,0.00945239,1584.9,1584.8,9.50258]
[1744851714283,0.00945239,1584.9,1584.8,3.2405]
[1744851715378,1.27146239,1584.9,1584.8,3.2405]
[1744851715578,1.72275239,1584.9,1584.8,3.2405]
[1744851716382,0.00945239,1584.9,1584.8,4.50258]
[1744851717880,0.00945239,1584.9,1584.8,9.50258]
[1744851720186,0.00945239,1584.9,1584.8,4.50258]
[1744851720483,3.21725239,1584.9,1584.8,4.50258]
[1744851723394,1.2621,1584.8,1584.5,46.656]
[1744851723684,3.2078,1584.7,1584.5,2.90629]
[1744851723877,1.6083,1584.6,1584.4,1.7199]
[1744851724087,3.2078,1584.5,1584.4,2.98224]
[1744851724286,7.5218,1584.5,1584.4,2.98224]
[1744851725287,9.1301,1584.5,1584.4,2.98224]
[1744851725488,7.5218,1584.5,1584.4,2.98224]
[1744851726285,7.5218,1584.5,1584.2,0.8017]
[1744851726491,4.47031,1584.3,1584.1,1.26261]
[1744851726790,1.7411,1584.2,1584.1,1.26261]
[1744851727086,1.7411,1584.2,1584.0,3.01606]
[1744851727289,3.2078,1584.1,1584.0,3.01606]
[1744851727590,3.2078,1584.1,1584.0,1.26266]
[1744851727990,3.2078,1584.1,1584.0,3.01606]
[1744851728190,3.2078,1584.1,1584.0,1.26266]
[1744851728789,4.9489,1584.1,1584.0,1.26266]
[1744851728983,4.313,1584.2,1584.1,1.26264]
[1744851729488,3.2078,1584.3,1584.2,1.26256]
[1744851729885,3.2078,1584.3,1584.2,2.93146]
[1744851730793,4.9183,1584.3,1584.2,2.93146]
[1744851730994,3.2078,1584.3,1584.2,2.93146]
[1744851731495,4.9183,1584.3,1584.2,2.93146]
[1744851733079,3.2078,1584.3,1584.2,2.93146]
[1744851733284,8.89265084,1584.5,1584.4,1.2624]
[1744851733789,2.6,1584.5,1584.4,1.2624]
[1744851734691,8.04985084,1584.6,1584.5,1.26232]
[1744851734987,6.29265084,1584.6,1584.5,1.26232]
[1744851735993,6.29265084,1584.6,1584.5,2.10942]
[1744851737299,6.0763,1584.7,1584.6,1.26224]
[1744851737488,6.0763,1584.7,1584.6,2.92474]
[1744851737796,1.7623,1584.7,1584.6,2.92474]
[1744851739492,1.7623,1584.7,1584.5,1.26228]
[1744851739493,6.7623,1584.7,1584.5,1.26228]
[1744851739695,8.78409,1584.6,1584.4,1.26235]
[1744851739895,10.50969,1584.6,1584.4,1.26235]
[1744851740200,1.7256,1584.5,1584.4,1.26235]
[1744851740397,2.575,1584.5,1584.4,1.26235]
[1744851741295,1.7256,1584.5,1584.4,1.26235]
[1744851741495,7.5218,1584.6,1584.5,1.26232]
[1744851741703,1.7165,1584.7,1584.6,1.26224]
[1744851741999,9.2358,1584.8,1584.7,1.26216]
[1744851742200,10.0729,1584.8,1584.7,1.26216]
[1744851742805,3.2078,1584.8,1584.7,1.26216]
[1744851742994,3.2078,1584.8,1584.7,2.93866]
[1744851743399,3.2078,1584.8,1584.7,7.93866]
[1744851743700,0.00945239,1584.9,1584.8,1.26208]
[1744851743895,0.00945239,1584.9,1584.8,2.93858]
[1744851744606,2.39e-06,1584.9,1584.8,13.79458]
[1744851744996,2.39e-06,1584.9,1584.8,18.10858]
[1744851745307,4.99457323,1585.0,1584.9,1.26201]
[1744851745501,4.99457323,1585.0,1584.9,3.82921]
[1744851745703,3.67496323,1585.0,1584.9,8.82921]
[1744851745906,8.37587115,1585.1,1585.0,1.26193]
[1744851746199,9.4993758,1585.3,1585.2,1.26177]
[1744851746703,11.1298758,1585.3,1585.2,1.26177]
[1744851747893,16.1298758,1585.3,1585.1,0.00945239]
[1744851748093,5.9176,1585.2,1584.6,1.26217]
[1744851748306,4.47001,1584.7,1584.5,2.87386]
[1744851748605,4.47001,1584.7,1584.4,1.26235]
[1744851748606,3.68446,1584.6,1584.4,1.26235]
[1744851748795,4.52796,1584.6,1584.4,1.26235]
[1744851748999,3.2657,1584.6,1584.4,1.2624]
[1744851749201,3.2657,1584.6,1584.5,1.26232]
[1744851749707,3.2657,1584.6,1584.4,1.26235]
[1744851749906,4.52801,1584.6,1584.4,1.26236]
[1744851750110,4.52801,1584.6,1584.3,7.47705239]
[1744851750111,1.2624,1584.4,1584.3,0.00945239]
[1744851750406,5.5754,1584.4,1584.3,0.00945239]
[1744851750598,7.2094,1584.4,1584.3,0.00945239]
[1744851750795,12.2094,1584.4,1584.3,0.00945239]
[1744851752204,5.947,1584.4,1584.3,0.00945239]
[1744851752409,1.634,1584.4,1584.3,1.27193239]
[1744851752609,2.8964,1584.4,1584.3,0.00945239]
[1744851753102,1.634,1584.4,1584.3,0.00945239]
[1744851753407,2.8964,1584.4,1584.3,0.00945239]
[1744851754403,7.8964,1584.4,1584.3,0.00945239]
[1744851756407,1.634,1584.4,1584.3,1.27193239]
[1744851757201,1.634,1584.4,1584.3,0.00945239]
[1744851757402,2.8964,1584.4,1584.3,0.00945239]
[1744851757605,1.634,1584.4,1584.3,1.27193239]
[1744851758606,2.8964,1584.4,1584.3,0.00945239]
[1744851759110,1.634,1584.4,1584.3,0.00945239]
[1744851760011,1.634,1584.4,1584.3,1.27193239]
[1744851760314,2.8964,1584.4,1584.3,1.27193239]
[1744851760713,2.8964,1584.4,1584.3,0.00945239]
[1744851760911,2.8964,1584.4,1584.3,1.27193239]
[1744851761914,1.634,1584.4,1584.3,1.27193239]
[1744851763414,1.634,1584.4,1584.3,0.00945239]
[1744851763618,2.8964,1584.4,1584.3,0.00945239]
[1744851765917,1.634,1584.4,1584.3,1.27193239]
[1744851766809,1.634,1584.4,1584.3,1.66535239]
[1744851767014,1.634,1584.4,1584.3,2.92783239]
[1744851767414,2.8964,1584.4,1584.3,1.66535239]
[1744851767618,2.8964,1584.4,1584.3,2.92783239]
[1744851767816,1.634,1584.4,1584.3,2.92783239]
[1744851768311,2.8964,1584.4,1584.3,0.00945239]
[1744851768517,2.8964,1584.4,1584.3,1.27193239]
[1744851768716,2.8964,1584.4,1584.3,0.00945239]
[1744851769912,1.634,1584.4,1584.3,1.27193239]
[1744851770320,2.8964,1584.4,1584.3,0.00945239]
[1744851770523,1.634,1584.4,1584.3,1.27193239]
[1744851771321,8.79363239,1584.5,1584.3,1.27193239]
[1744851771616,10.42533239,1584.5,1584.4,1.7626]
[1744851772520,7.53125239,1584.5,1584.4,1.7626]
[1744851772721,7.53125239,1584.5,1584.4,3.9044]
[1744851773823,8.79357239,1584.5,1584.4,2.642]
[1744851774420,10.42527239,1584.5,1584.4,2.642]
[1744851774722,10.42533239,1584.5,1584.3,1.27193239]
[1744851774924,1.7571,1584.4,1584.3,1.27193239]
[1744851775223,1.7571,1584.4,1584.3,3.01743239]
[1744851775614,8.79363239,1584.5,1584.3,3.01743239]
[1744851775815,10.55073239,1584.5,1584.4,1.7455]
[1744851777018,1.2624,1584.4,1584.3,0.00945239]
[1744851777328,3.0195,1584.4,1584.3,0.00945239]
[1744851785328,8.0195,1584.4,1584.3,0.00945239]
[1744851785532,8.0195,1584.4,1583.9,1.6761]
[1744851785533,15.90327,1584.4,1583.9,3.4008]
[1744851785826,3.2078,1584.0,1583.3,5.856]
[1744851786030,3.2078,1583.7,1583.5,1.2631]
[1744851786226,4.316,1583.7,1583.6,1.7247]
[1744851786529,4.316,1583.7,1583.6,2.5522]
[1744851786732,2.93472,1583.8,1583.6,2.5522]
[1744851786931,6.18206,1583.9,1583.7,1.6407]
[1744851787123,10.49806,1583.9,1583.7,2.4562]
[1744851787326,9.2352,1583.9,1583.7,3.71916]
[1744851787632,7.5238,1583.9,1583.8,1.6407]
[1744851788033,8.7866,1583.9,1583.8,1.6407]
[1744851791235,7.5238,1583.9,1583.8,1.6407]
[1744851791638,8.7866,1583.9,1583.8,1.6407]
[1744851792431,1.26296,1583.7,1583.6,0.8275]
[1744851792647,4.47076,1583.7,1583.6,2.4808]
[1744851793029,6.11666,1583.7,1583.6,2.4808]
[1744851793534,6.11666,1583.7,1583.6,1.6533]
[1744851793837,6.11672,1583.7,1583.5,0.006128]
[1744851794032,5.57704,1583.6,1583.5,1.613428]
[1744851794634,4.314,1583.6,1583.5,2.876548]
[1744851794937,3.2078,1583.7,1583.5,2.876548]
[1744851795132,7.5228,1583.7,1583.6,3.69604]
[1744851795640,8.78576,1583.7,1583.6,2.433]
[1744851796031,10.43006,1583.7,1583.6,2.433]
[1744851796636,4.315,1583.7,1583.6,3.69604]
[1744851798040,5.57796,1583.7,1583.6,2.433]
[1744851798242,8.78576,1583.7,1583.6,2.433]
[1744851798435,4.315,1583.7,1583.6,3.69604]
[1744851798634,4.315,1583.7,1583.6,2.433]
[1744851798937,12.84647115,1583.9,1583.7,1.2629]
[1744851799140,17.16147115,1583.9,1583.8,2.5538]
[1744851800248,18.76307115,1583.9,1583.8,1.6899]
[1744851800558,1.26291,1583.8,1583.6,2.95261]
[1744851800855,2.86451,1583.8,1583.7,1.6899]
[1744851801958,1.26296,1583.7,1583.6,1.6896]
[1744851802152,6.14216,1583.7,1583.6,4.65794]
[1744851802459,4.8792,1583.7,1583.6,4.65794]
[1744851802856,6.14216,1583.7,1583.6,4.65794]
[1744851803353,3.2078,1583.7,1583.6,4.65794]
[1744851803754,2.9343,1583.8,1583.6,4.65794]
[1744851803953,2.9343,1583.8,1583.7,1.7053]
[1744851804157,2.9343,1583.8,1583.7,2.96826]
[1744851804558,1.6714,1583.8,1583.7,2.96826]
[1744851804862,7.5228,1583.9,1583.7,1.7053]
[1744851805154,7.5228,1583.9,1583.8,2.96818]
[1744851805354,8.7856,1583.9,1583.8,1.7053]
[1744851805555,10.54903,1583.9,1583.7,1.26291]
[1744851805756,10.54903,1583.9,1583.8,1.6063]
[1744851806654,7.5228,1583.9,1583.8,2.86918]
[1744851806957,7.5228,1583.9,1583.8,1.6063]
[1744851807154,7.5228,1583.9,1583.8,2.86918]
[1744851807757,7.5228,1583.9,1583.8,1.6063]
[1744851807758,8.7856,1583.9,1583.8,1.6063]
[1744851808054,7.5228,1583.9,1583.8,2.86918]
[1744851808359,8.7856,1583.9,1583.8,2.86918]
[1744851808654,8.7856,1583.9,1583.8,1.6063]
[1744851808855,10.391,1583.9,1583.8,1.6063]
[1744851809056,1.26295,1583.8,1583.6,2.95262]
[1744851809248,2.86834,1583.8,1583.6,3.298]
[1744851809449,3.2078,1583.7,1583.6,4.56102]
[1744851809649,3.2078,1583.7,1583.6,2.95262]
[1744851810958,4.47076,1583.7,1583.6,0.8257]
[1744851811256,6.07616,1583.7,1583.6,0.8257]
[1744851812661,1.26304,1583.6,1583.5,0.006128]
[1744851812857,7.31304,1583.6,1583.5,0.006128]
[1744851813058,9.00014,1583.6,1583.5,0.006128]
[1744851814860,4.315,1583.6,1583.5,0.006128]
[1744851815167,3.2078,1583.7,1583.5,0.006128]
[1744851815168,7.98759024,1583.8,1583.6,1.26302]
[1744851815461,1.26302,1583.7,1583.5,1.269198]
[1744851815661,2.94402,1583.7,1583.5,1.269198]
[1744851815861,1.26304,1583.6,1583.5,0.006128]
[1744851816061,1.681,1583.6,1583.5,1.269248]
[1744851816261,7.56953024,1583.8,1583.5,0.006128]
[1744851816761,7.56953024,1583.8,1583.6,1.26297]
[1744851817264,6.30659024,1583.8,1583.7,1.26296]
[1744851818062,18.45997024,1583.9,1583.7,1.26296]
[1744851819463,1.26293,1583.8,1583.6,1.263]
[1744851819662,2.89743,1583.8,1583.6,1.263]
[1744851820665,1.26296,1583.7,1583.5,1.269208]
[1744851820958,1.26304,1583.6,1583.5,0.006128]
[1744851821359,2.87594,1583.6,1583.5,0.006128]
[1744851821552,7.19094,1583.6,1583.5,0.006128]
[1744851821756,8.01664,1583.6,1583.5,0.006128]
[1744851822467,11.22444,1583.6,1583.5,0.006128]
[1744851823170,7.5228,1583.6,1583.5,1.269248]
[1744851823365,4.315,1583.6,1583.5,2.889448]
[1744851826769,3.02257,1583.7,1583.5,2.889448]
[1744851826970,3.02257,1583.7,1583.6,1.7323]
[1744851827170,1.26304,1583.6,1583.5,0.006128]
[1744851827469,2.87464,1583.6,1583.5,0.006128]
[1744851827661,1.6116,1583.6,1583.5,3.001548]
[1744851828370,16.70393024,1583.8,1583.6,1.26304]
[1744851828668,16.70393024,1583.8,1583.7,1.7323]
[1744851829973,12.38893024,1583.8,1583.7,1.7323]
[1744851830166,16.70393024,1583.8,1583.7,1.7323]
[1744851830471,18.77321115,1583.8,1583.7,1.7323]
[1744851831274,17.51027115,1583.8,1583.7,2.99526]
[1744851831466,11.58367115,1583.8,1583.7,2.99526]
[1744851834881,12.84655115,1583.8,1583.7,2.99526]
[1744851835179,12.84655115,1583.8,1583.7,1.7323]
[1744851835473,11.58367115,1583.8,1583.7,1.7323]
[1744851835679,11.58367115,1583.8,1583.7,3.85586]
[1744851836380,12.84655115,1583.8,1583.7,3.85586]
[1744851836581,11.58367115,1583.8,1583.7,3.85586]
[1744851836980,12.84655115,1583.8,1583.7,3.85586]
[1744851837181,11.58367115,1583.8,1583.7,3.85586]
[1744851840592,11.58367115,1583.8,1583.7,8.85586]
[1744851840787,11.58367115,1583.8,1583.7,9.71116]
[1744851841382,13.31167115,1583.8,1583.7,2.99526]
[1744851841683,11.58367115,1583.8,1583.7,2.99526]
[1744851844787,3.2078,1583.8,1583.7,2.99526]
[1744851845091,14.19171382,1583.9,1583.8,1.26288]
[1744851845388,12.92889382,1583.9,1583.8,1.26288]
[1744851845782,9.72109382,1583.9,1583.8,1.26288]
[1744851845981,12.92889382,1583.9,1583.8,1.26288]
[1744851846692,14.19169382,1583.9,1583.8,1.26288]
[1744851847590,14.19169382,1583.9,1583.7,2.9952]
[1744851847789,1.6506,1583.8,1583.7,2.9952]
[1744851849491,11.58367115,1583.9,1583.8,1.26288]
[1744851849693,11.58367115,1583.9,1583.8,2.95528]
[1744851850191,8.37587115,1583.9,1583.8,13.81128]
[1744851850485,8.37587115,1583.9,1583.8,8.81128]
[1744851851491,10.11757115,1584.0,1583.9,1.2628]
[1744851851691,11.38029115,1584.0,1583.9,3.8124]
[1744851852290,10.11757115,1584.0,1583.9,3.8124]
[1744851854195,11.38029115,1584.0,1583.9,3.8124]
[1744851854393,10.11757115,1584.0,1583.9,3.8124]
[1744851855398,1.2628,1583.9,1583.8,7.11882]
[1744851855696,2.4763,1583.9,1583.8,7.11882]
[1744851855885,2.4763,1583.9,1583.8,1.26282]
[1744851856296,2.4763,1583.9,1583.8,2.99932]
[1744851858400,5.6841,1583.9,1583.5,5.862128]
[1744851858591,3.2078,1583.7,1583.5,7.615328]
[1744851858795,7.5208,1583.7,1583.6,1.26304]
[1744851858993,9.144,1583.7,1583.6,3.01624]
[1744851859798,4.831,1583.7,1583.6,4.65644]
[1744851860400,3.2078,1583.7,1583.6,4.65644]
[1744851860795,6.8936,1583.9,1583.8,1.26288]
[1744851861301,6.0522,1583.9,1583.8,1.26288]
[1744851861699,14.42807115,1583.9,1583.8,1.26288]
[1744851862198,8.37587115,1583.9,1583.8,2.88468]
[1744851865305,13.95203893,1584.0,1583.9,1.2628]
[1744851865306,3.4822,1584.0,1583.9,1.2628]
[1744851866808,2.6119,1584.0,1583.9,1.2628]
[1744851867099,2.6119,1584.0,1583.9,2.9158]
[1744851869394,2.6119,1584.0,1583.8,2.88464]
[1744851869597,2.93725,1583.9,1583.8,1.26288]
[1744851869901,2.4921,1583.9,1583.8,1.26288]
[1744851870911,3.7549,1583.9,1583.8,1.26288]
[1744851871119,2.4921,1583.9,1583.8,1.26288]
[1744851871420,3.7549,1583.9,1583.8,1.26288]
[1744851871822,2.4921,1583.9,1583.8,1.26288]
[1744851874018,1.6744,1583.9,1583.8,1.26288]
[1744851874521,7.19597161,1584.0,1583.9,1.2628]
[1744851875021,6.32327161,1584.0,1583.9,1.2628]
[1744851875514,6.32327161,1584.0,1583.9,2.9575]
[1744851876926,8.89747161,1584.0,1583.9,2.9575]
[1744851879529,8.89747161,1584.0,1583.9,4.7074]
[1744851896338,6.32327161,1584.0,1583.9,4.7074]
[1744851896639,8.37587115,1584.1,1584.0,1.26272]
[1744851896831,5.48083121,1584.1,1584.0,16.86787156]
[1744851897036,5.48083121,1584.1,1584.0,21.86787156]
[1744851897430,5.48083121,1584.1,1584.0,62.66787156]
[1744851897629,2.61047121,1584.1,1584.0,62.66787156]
[1744851897835,0.96428121,1584.1,1584.0,62.66787156]
[1744851899337,0.86835239,1584.5,1584.1,3.15655]
[1744851899530,0.86835239,1584.5,1584.4,1.2624]
[1744851899934,0.00945239,1584.5,1584.4,1.2624]
[1744851901037,0.00945239,1584.5,1584.4,7.1184]
[1744851901237,0.00945239,1584.5,1584.4,8.7262]
[1744851901534,0.00945239,1584.5,1584.4,11.934]
[1744851901738,2.39e-06,1584.5,1584.4,16.934]
[1744851901944,10.46983893,1584.7,1584.6,1.26224]
[1744851902241,13.82173893,1584.9,1584.8,1.26208]
[1744851902936,13.82173893,1584.9,1584.8,2.07808]
[1744851903236,13.82173893,1584.9,1584.8,2.90658]
[1744851904038,10.46983893,1584.9,1584.8,8.76258]
[1744851904238,10.46983893,1584.9,1584.8,11.97038]
[1744851904539,10.46983893,1584.9,1584.8,16.97038]
[1744851904738,2.39e-06,1585.0,1584.9,1.26201]
[1744851905037,14.81703915,1585.5,1585.4,1.26161]
[1744851905237,10.50603915,1585.5,1585.4,1.26161]
[1744851906245,12.14513915,1585.5,1585.4,1.26161]
[1744851907638,12.14513915,1585.5,1585.3,3.00656]
[1744851907847,1.6391,1585.4,1585.3,3.00656]
[1744851910043,1.27090239,1585.6,1585.3,3.00656]
[1744851910044,0.00945239,1585.6,1585.3,1.7449]
[1744851910245,0.00945239,1585.6,1585.2,11.8174]
[1744851910246,1.73625239,1585.6,1585.5,1.26153]
[1744851912847,0.00945239,1585.6,1585.5,1.26153]
[1744851913042,0.00945239,1585.6,1585.5,3.76163]
[1744851913235,0.00945239,1585.6,1585.5,8.06863]
[1744851913434,2.39e-06,1585.6,1585.5,13.06863]
[1744851913640,2.39e-06,1585.6,1585.5,18.92463]
[1744851913848,3.2078,1586.1,1586.0,1.26113]
[1744851914049,1.61036145,1586.1,1586.0,1.26113]
[1744851918237,6.61036145,1586.1,1585.9,0.00945239]
[1744851918442,6.38733,1586.0,1585.9,0.00945239]
[1744851918642,8.07533,1586.0,1585.9,0.00945239]
[1744851918843,13.07533,1586.0,1585.9,0.00945239]
[1744851921045,1.2615,1585.6,1585.4,7.11759]
[1744851921252,0.8637,1585.5,1585.4,7.10835145]
[1744851921550,0.8637,1585.5,1585.4,47.90835145]
[1744851922142,4.305,1585.7,1585.6,1.26145]
[1744851922346,0.8637,1585.8,1585.6,1.26145]
[1744851922651,0.85446145,1585.8,1585.7,1.26137]
[1744851923043,0.85446145,1585.8,1585.6,1.26139]
[1744851923452,0.85446145,1585.8,1585.7,1.26137]
[1744851925253,0.85446145,1585.8,1585.6,1.7324]
[1744851925254,0.8728,1585.9,1585.8,1.26129]
[1744851925851,0.8728,1585.9,1585.8,2.95959]
[1744851926447,2.13407,1585.9,1585.7,5.84676145]
[1744851926653,5.34187,1585.9,1585.7,7.10813145]
[1744851926853,1.26129,1585.8,1585.7,5.84676145]
[1744851927158,0.8728,1585.9,1585.8,1.26129]
[1744851927364,5.34185,1585.9,1585.7,7.10810145]
[1744851928353,4.0806,1585.9,1585.8,1.26129]
[1744851928556,0.8728,1585.9,1585.8,1.26129]
[1744851928854,2.13402,1585.9,1585.7,7.10807145]
[1744851929050,0.8728,1585.9,1585.7,7.10808145]
[1744851929448,2.13401,1585.9,1585.7,7.10807145]
[1744851931855,1.6174,1585.8,1585.7,7.10807145]
[1744851932867,0.8728,1585.9,1585.8,1.26129]
[1744851933054,0.8728,1585.9,1585.8,3.83169]
[1744851933359,2.4446,1586.0,1585.9,1.26121]
[1744851933551,2.4446,1586.0,1585.9,3.01791]
[1744851934454,1.27044239,1586.2,1586.0,1.26113]
[1744851934755,1.70725239,1586.2,1586.0,1.26113]
[1744851934957,2.96823239,1586.2,1586.1,1.6796]
[1744851937662,2.96822239,1586.2,1586.1,2.94065]
[1744851938058,2.96822239,1586.2,1586.1,1.6796]
[1744851938259,1.26105,1586.1,1585.9,7.10791145]
[1744851938555,0.8181,1586.0,1585.9,7.10791145]
[1744851938862,4.9183,1586.1,1586.0,1.26113]
[1744851939055,2.97155,1586.1,1586.0,2.92383]
[1744851939260,2.97155,1586.1,1586.0,1.6627]
[1744851939959,3.15289,1586.0,1585.5,5.84676145]
[1744851940159,1.26139,1585.7,1585.5,8.74972145]
[1744851940348,1.26139,1585.7,1585.5,8.7404829]
[1744851940552,1.6718,1585.6,1585.5,8.7404829]
[1744851941153,1.6718,1585.6,1585.5,8.7405529]
[1744851941553,6.14105,1585.6,1585.5,5.8375229]
[1744851941761,1.6718,1585.6,1585.5,7.0990529]
[1744851941960,4.46914,1585.8,1585.6,1.26141]
[1744851942158,6.13170145,1585.8,1585.6,1.6415]
[1744851942365,2.93317,1585.7,1585.6,1.6415]
[1744851942555,1.26145,1585.6,1585.5,5.8375229]
[1744851942858,3.79395,1585.6,1585.5,5.8375229]
[1744851943253,3.79395,1585.6,1585.5,46.6375229]
[1744851943857,3.79395,1585.6,1585.5,40.8]
[1744851945161,2.5325,1585.6,1585.5,42.06153]
[1744851945860,3.79395,1585.6,1585.5,42.4991]
[1744851946561,3.79395,1585.6,1585.3,0.00945239]
[1744851946562,1.26161,1585.4,1585.3,0.00945239]
[1744851946763,4.46941,1585.4,1585.3,0.00945239]
[1744851946955,9.46941,1585.4,1585.3,0.00945239]
[1744851947151,11.21561,1585.4,1585.3,0.00945239]
[1744851947356,1.26193,1585.0,1584.9,40.8]
[1744851947562,1.26208,1584.8,1584.7,8.35906294]
[1744851947759,7.5108,1584.8,1584.7,8.35906294]
[1744851947957,8.77288,1584.8,1584.7,10.07416294]
[1744851948158,10.51908,1584.8,1584.7,10.07416294]
[1744851948359,10.51908,1584.8,1584.7,1.7151]
[1744851948552,9.257,1584.8,1584.6,0.00945239]
[1744851948757,1.7462,1584.7,1584.6,1.27169239]
[1744851949267,1.7462,1584.7,1584.6,0.00945239]
[1744851949564,3.00836,1584.7,1584.6,0.00945239]
[1744851949760,1.7462,1584.7,1584.6,2.92439239]
[1744851949959,1.7462,1584.7,1584.6,1.66215239]
[1744851950163,3.00836,1584.7,1584.6,1.66215239]
[1744851950463,1.7462,1584.7,1584.6,1.66215239]